bitfinex/quotes_BTCUSD_20250902
["timestamp","ask_amount","ask_price","bid_price","bid_amount"]
[1756773303847,0.18316373,109220.0,109210.0,0.44670939]
[1756773304092,0.47347962,109220.0,109210.0,0.44670939]
[1756773304525,0.47561962,109220.0,109210.0,0.44670939]
[1756773305257,0.47561962,109220.0,109210.0,0.44870939]
[1756773305578,0.47561962,109220.0,109210.0,0.44670939]
[1756773305997,0.47561962,109220.0,109210.0,0.44673939]
[1756773306202,0.47854962,109220.0,109210.0,0.4356094]
[1756773306615,0.50607262,109220.0,109210.0,0.25247599]
[1756773306828,0.50607262,109220.0,109210.0,0.16056]
[1756773307256,0.50607262,109220.0,109210.0,0.15656]
[1756773308815,0.50607262,109220.0,109210.0,0.34169341]
[1756773309024,0.50607262,109220.0,109210.0,0.15856]
[1756773309671,0.31424867,109220.0,109210.0,0.15856]
[1756773309876,0.49736531,109220.0,109210.0,0.15856]
[1756773312522,1.1276812,109220.0,109210.0,0.15856]
[1756773313396,1.21959719,109220.0,109210.0,0.002]
[1756773313601,0.18315018,109200.0,109180.0,0.19232613]
[1756773313816,0.29031589,109190.0,109180.0,0.28719212]
[1756773314044,0.47346607,109200.0,109180.0,0.44550212]
[1756773314265,0.29031589,109190.0,109180.0,0.44550212]
[1756773314488,0.47348284,109190.0,109180.0,0.44550212]
[1756773314699,0.29031589,109190.0,109180.0,0.44550212]
[1756773314947,0.29031589,109190.0,109180.0,0.44750212]
[1756773315167,0.30372105,109190.0,109180.0,0.44750212]
[1756773315625,0.30372105,109190.0,109180.0,0.44550212]
[1756773315871,0.30372105,109190.0,109180.0,0.44650212]
[1756773316337,0.486888,109190.0,109180.0,0.44950212]
[1756773316705,0.30372105,109190.0,109180.0,0.44950212]
[1756773317938,0.29031589,109190.0,109180.0,0.44950212]
[1756773318404,0.29031589,109190.0,109180.0,0.44900212]
[1756773321487,0.21067818,109200.0,109190.0,0.18316695]
[1756773321715,0.79345996,109200.0,109190.0,0.18523695]
[1756773322802,0.79345996,109200.0,109190.0,0.18723695]
[1756773323328,0.79345996,109200.0,109190.0,0.19018695]
[1756773323585,0.79638996,109200.0,109190.0,0.002]
[1756773323833,0.79638996,109200.0,109190.0,0.18516695]
[1756773324080,0.79345996,109200.0,109190.0,0.18723695]
[1756773325310,0.79345996,109200.0,109190.0,0.00407]
[1756773325665,0.79345996,109200.0,109190.0,0.18723695]
[1756773327555,0.79638996,109200.0,109190.0,0.002]
[1756773327778,0.79638996,109200.0,109190.0,0.18516695]
[1756773328528,0.61030978,109200.0,109190.0,0.18723695]
[1756773328748,0.31784389,109200.0,109190.0,0.19018695]
[1756773329261,0.54597783,109220.0,109210.0,0.18313341]
[1756773329447,0.84485494,109220.0,109210.0,0.33909341]
[1756773329857,0.31043247,109220.0,109210.0,0.34411341]
[1756773330200,0.49862911,109220.0,109210.0,0.15596]
[1756773330354,0.52615511,109220.0,109210.0,0.15596]
[1756773330553,0.52715511,109220.0,109210.0,0.15596]
[1756773331418,0.33895847,109220.0,109210.0,0.34116341]
[1756773331620,0.52422511,109220.0,109210.0,0.15803]
[1756773331928,0.52815511,109220.0,109210.0,0.15596]
[1756773332763,0.52715511,109220.0,109210.0,0.15596]
[1756773332915,0.52615511,109220.0,109210.0,0.15596]
[1756773333128,0.52615511,109220.0,109210.0,0.15696]
[1756773333534,0.52615511,109220.0,109210.0,0.34009341]
[1756773334365,0.52322927,109220.0,109210.0,0.34216341]
[1756773334571,0.52615927,109220.0,109210.0,0.34009341]
[1756773334974,0.52615927,109220.0,109210.0,0.15696]
[1756773335315,0.52322927,109220.0,109210.0,0.34222341]
[1756773335539,0.52637927,109220.0,109210.0,0.18413341]
[1756773335753,1.24861115,109220.0,109210.0,0.001]
[1756773336025,1.30264342,109220.0,109210.0,0.001]
[1756773336236,1.18291961,109220.0,109210.0,0.001]
[1756773337071,1.23044581,109220.0,109210.0,0.001]
[1756773337706,1.22403043,109220.0,109210.0,0.001]
[1756773337926,1.23044998,109220.0,109210.0,0.001]
[1756773338343,1.24756798,109220.0,109210.0,0.001]
[1756773338776,1.24756798,109220.0,109200.0,0.15924]
[1756773339024,0.18315018,109200.0,109190.0,0.43428294]
[1756773339244,0.76378196,109200.0,109190.0,0.43428294]
[1756773339456,0.76378196,109200.0,109190.0,0.43963294]
[1756773339667,0.76378196,109200.0,109190.0,0.25646599]
[1756773340083,0.76586196,109200.0,109190.0,0.25646599]
[1756773340297,0.76586196,109200.0,109190.0,0.25324599]
[1756773340962,0.76586196,109200.0,109190.0,0.25846599]
[1756773341210,0.76378196,109200.0,109190.0,0.44163294]
[1756773346586,0.76586196,109200.0,109190.0,0.44163294]
[1756773348453,0.76378196,109200.0,109190.0,0.44163294]
[1756773348665,0.79130996,109200.0,109190.0,0.44163294]
[1756773351341,0.31784389,109200.0,109190.0,0.44163294]
[1756773351551,0.50099407,109200.0,109190.0,0.44163294]
[1756773351885,0.31784389,109200.0,109190.0,0.44163294]
[1756773352106,0.29031589,109200.0,109190.0,0.44163294]
[1756773352327,0.027527,109210.0,109200.0,0.18315018]
[1756773352553,0.5009763,109210.0,109200.0,0.18756955]
[1756773352767,0.5009763,109210.0,109200.0,0.19078955]
[1756773352966,0.31784289,109210.0,109200.0,0.18850018]
[1756773353382,0.5009763,109210.0,109200.0,0.18850018]
[1756773353630,0.5009763,109210.0,109200.0,0.18950018]
[1756773354449,0.5030563,109210.0,109200.0,0.18950018]
[1756773355269,0.5030563,109210.0,109200.0,0.00313]
[1756773355472,0.79652219,109210.0,109200.0,0.001]
[1756773355686,0.5062063,109210.0,109200.0,0.001]
[1756773357652,0.79652219,109210.0,109200.0,0.001]
[1756773359238,1.41290263,109210.0,109200.0,0.001]
[1756773359679,1.32098664,109210.0,109200.0,0.001]
[1756773360007,1.34071845,109210.0,109200.0,0.001]
[1756773360229,1.32098664,109210.0,109200.0,0.001]
[1756773360812,0.74035486,109210.0,109200.0,0.001]
[1756773361029,1.32098664,109210.0,109200.0,0.001]
[1756773361265,1.34071554,109210.0,109200.0,0.001]
[1756773364337,1.36216689,109210.0,109200.0,0.001]
[1756773366802,1.38189416,109210.0,109200.0,0.001]
[1756773367022,1.45655589,109210.0,109200.0,0.001]
[1756773367246,1.5762797,109210.0,109200.0,0.001]
[1756773367662,1.89760589,109210.0,109200.0,1e-08]
[1756773367889,1.89760589,109210.0,109170.0,0.158]
[1756773367890,0.34915918,109180.0,109150.0,0.26000006]
[1756773368110,0.4735164,109170.0,109160.0,0.09191599]
[1756773368333,0.4755664,109170.0,109160.0,0.09396599]
[1756773368546,0.5031014,109170.0,109160.0,0.09396599]
[1756773368787,0.5031014,109170.0,109160.0,0.09718599]
[1756773369205,0.5157009,109170.0,109160.0,0.09718599]
[1756773369411,0.80601679,109170.0,109160.0,0.09765915]
[1756773370254,0.80601679,109170.0,109160.0,0.00252316]
[1756773370472,1.14908679,109170.0,109160.0,0.00047316]
[1756773370902,1.14908679,109170.0,109160.0,0.00252316]
[1756773371112,1.14908679,109170.0,109160.0,0.00552316]
[1756773374269,1.14908679,109170.0,109160.0,0.00347316]
[1756773376207,1.14908679,109170.0,109160.0,0.19196045]
[1756773376208,1.14396679,109170.0,109160.0,0.19196045]
[1756773376882,0.67045039,109170.0,109160.0,0.19196045]
[1756773377084,0.8536509,109170.0,109160.0,0.19196045]
[1756773377292,0.65785089,109170.0,109160.0,0.19196045]
[1756773378389,0.8410514,109170.0,109160.0,0.19196045]
[1756773379605,0.65785089,109170.0,109160.0,0.19196045]
[1756773379808,0.67024401,109170.0,109160.0,0.19196045]
[1756773379931,0.65785089,109170.0,109160.0,0.19196045]
[1756773380143,0.8410514,109170.0,109160.0,0.19196045]
[1756773380573,0.65785089,109170.0,109160.0,0.19196045]
[1756773380986,0.47350011,109180.0,109170.0,0.18319485]
[1756773381191,0.50103511,109180.0,109170.0,0.18846485]
[1756773381603,0.51594065,109180.0,109170.0,0.00527]
[1756773381860,0.18320051,109170.0,109160.0,0.09438915]
[1756773382067,0.4735164,109170.0,109160.0,0.28082644]
[1756773382269,0.4735164,109170.0,109160.0,0.28287644]
[1756773383111,0.4735164,109170.0,109160.0,0.28087644]
[1756773383512,0.4755664,109170.0,109160.0,0.27765644]
[1756773383717,0.76895229,109170.0,109160.0,0.00047316]
[1756773383922,0.76895229,109170.0,109160.0,0.00347316]
[1756773384158,0.76895229,109170.0,109160.0,0.00447316]
[1756773385753,0.92631229,109170.0,109160.0,0.00447316]
[1756773386140,0.92631229,109170.0,109160.0,0.00147316]
[1756773386454,0.92631229,109170.0,109160.0,0.00247316]
[1756773386669,0.92631229,109170.0,109160.0,0.00047316]
[1756773387075,0.92631229,109170.0,109160.0,0.00247316]
[1756773388074,0.95385029,109170.0,109160.0,0.00247316]
[1756773392756,0.95385029,109170.0,109160.0,0.03581006]
[1756773395801,0.37321851,109170.0,109160.0,0.03581006]
[1756773396021,0.5010544,109170.0,109160.0,0.22408735]
[1756773396853,0.5030144,109170.0,109160.0,0.04087006]
[1756773396992,0.5030144,109170.0,109160.0,0.03791006]
[1756773397605,0.5030144,109170.0,109160.0,0.04087006]
[1756773398735,0.5030144,109170.0,109160.0,0.22408735]
[1756773399031,0.5010544,109170.0,109160.0,0.22408735]
[1756773399457,0.31785389,109170.0,109160.0,0.31600334]
[1756773399692,0.29031589,109170.0,109160.0,0.31600334]
[1756773401187,0.22313759,109180.0,109170.0,0.18320051]
[1756773401406,0.53515799,109180.0,109170.0,0.34498051]
[1756773402030,0.53515844,109180.0,109170.0,0.34498051]
[1756773402993,0.53615844,109180.0,109170.0,0.16178]
[1756773403435,0.53615844,109180.0,109170.0,0.34498051]
[1756773403640,0.53515844,109180.0,109170.0,0.16178]
[1756773403848,0.53615844,109180.0,109170.0,0.15882]
[1756773404280,0.53615844,109180.0,109170.0,0.34202051]
[1756773404494,0.51541348,109180.0,109170.0,0.34202051]
[1756773404714,0.51541348,109180.0,109170.0,0.15882]
[1756773405797,0.51843348,109180.0,109170.0,0.15882]
[1756773406018,0.51843348,109180.0,109170.0,0.15672]
[1756773406228,0.51843348,109180.0,109170.0,0.15872]
[1756773407503,0.51843348,109180.0,109170.0,0.002]
[1756773408182,0.80874937,109180.0,109170.0,0.002]
[1756773408434,1.2225241,109180.0,109170.0,0.002]
[1756773408674,1.31444009,109180.0,109170.0,0.002]
[1756773409127,0.52320051,109170.0,109160.0,0.03381006]
[1756773409316,1.28005478,109170.0,109160.0,0.03381006]
[1756773409575,1.33906542,109170.0,109160.0,0.03381006]
[1756773410424,1.36660642,109170.0,109160.0,0.03381006]
[1756773410638,1.36660642,109170.0,109160.0,0.03581006]
[1756773411119,1.45852241,109170.0,109160.0,0.03581006]
[1756773411966,1.45852241,109170.0,109160.0,0.03381006]
[1756773412200,1.43171459,109170.0,109160.0,0.03381006]
[1756773412627,1.43071459,109170.0,109160.0,0.03381006]
[1756773412964,1.43171459,109170.0,109160.0,0.03381006]
[1756773426261,1.39406981,109170.0,109160.0,0.03381006]
[1756773426487,1.36784536,109170.0,109160.0,0.03381006]
[1756773430351,1.39406981,109170.0,109160.0,0.03381006]
[1756773430559,1.41377621,109170.0,109160.0,0.03381006]
[1756773431938,0.52323408,109150.0,109140.0,0.0004]
[1756773432165,1.35218185,109150.0,109140.0,0.00044709]
[1756773432421,1.39810794,109150.0,109140.0,0.00044709]
[1756773432617,1.40317794,109150.0,109140.0,0.00044709]
[1756773432965,1.40317794,109150.0,109140.0,0.00344709]
[1756773433166,1.40686794,109150.0,109140.0,0.00344709]
[1756773433807,1.44812858,109150.0,109140.0,0.00444709]
[1756773434210,1.29172858,109150.0,109140.0,0.00444709]
[1756773434413,1.44812858,109150.0,109140.0,0.00444709]
[1756773435600,0.38961609,109150.0,109140.0,0.00969709]
[1756773435814,0.00369,109150.0,109140.0,0.71613984]
[1756773436033,0.4826795,109170.0,109150.0,0.18322238]
[1756773436283,0.31785389,109160.0,109150.0,0.27742879]
[1756773436493,0.31785389,109160.0,109150.0,0.27513837]
[1756773436707,0.64231943,109180.0,109170.0,0.18320051]
[1756773436925,0.66201291,109180.0,109170.0,0.00525]
[1756773437376,0.68954891,109180.0,109170.0,0.00525]
[1756773438205,0.69154891,109180.0,109170.0,0.00525]
[1756773438447,0.69154891,109180.0,109170.0,0.18845051]
[1756773439499,0.68954891,109180.0,109170.0,0.18845051]
[1756773439883,0.53314891,109180.0,109170.0,0.19045051]
[1756773440848,0.51345543,109180.0,109170.0,0.19045051]
[1756773441450,0.66985543,109180.0,109170.0,0.19045051]
[1756773442155,0.51345499,109180.0,109170.0,0.19045051]
[1756773442574,0.33027126,109180.0,109170.0,0.19045051]
[1756773442784,0.03995537,109180.0,109170.0,0.19045051]
[1756773443422,0.027536,109180.0,109170.0,0.2823665]
[1756773443653,0.19232445,109200.0,109190.0,0.18316695]
[1756773443654,0.29031589,109200.0,109190.0,0.18316695]
[1756773443865,0.47346607,109200.0,109190.0,0.00525]
[1756773444094,0.47346607,109200.0,109190.0,0.18841695]
[1756773444307,0.50099707,109200.0,109190.0,0.18841695]
[1756773444511,0.03933661,109200.0,109190.0,0.18841695]
[1756773444723,0.51280268,109200.0,109190.0,0.18841695]
[1756773444898,0.51527398,109200.0,109190.0,0.18841695]
[1756773446177,0.50346837,109200.0,109190.0,0.18841695]
[1756773446934,0.50446837,109200.0,109190.0,0.18841695]
[1756773447627,0.0300023,109200.0,109190.0,0.18841695]
[1756773447851,0.0280023,109200.0,109190.0,0.18841695]
[1756773448061,0.0310023,109200.0,109190.0,0.18841695]
[1756773448258,0.32031819,109200.0,109190.0,0.18841695]
[1756773449600,0.0300023,109200.0,109190.0,0.18841695]
[1756773449812,0.32031819,109200.0,109190.0,0.18841695]
[1756773450029,0.50146837,109200.0,109190.0,0.18841695]
[1756773450421,0.31831819,109200.0,109190.0,0.19041695]
[1756773451025,0.50146837,109200.0,109190.0,0.19041695]
[1756773458023,1.22907025,109200.0,109190.0,0.002]
[1756773458183,1.2536197,109200.0,109190.0,0.002]
[1756773458393,1.54393559,109200.0,109190.0,0.002]
[1756773458593,1.56355024,109200.0,109190.0,0.002]
[1756773458794,0.18321729,109160.0,109150.0,0.05497]
[1756773459016,0.47353318,109160.0,109150.0,0.14688599]
[1756773459237,0.47353318,109160.0,109150.0,0.14894599]
[1756773459383,0.47566318,109160.0,109150.0,0.14894599]
[1756773459591,0.47566318,109160.0,109150.0,0.09718599]
[1756773459931,0.50320018,109160.0,109150.0,0.25350599]
[1756773460187,0.50320018,109160.0,109150.0,4.709e-05]
[1756773460399,0.50644018,109160.0,109150.0,0.15636709]
[1756773460609,0.50644018,109160.0,109150.0,0.00204709]
[1756773460834,0.51848308,109160.0,109150.0,0.00204709]
[1756773461061,0.51848308,109160.0,109150.0,0.00504709]
[1756773461279,0.51848308,109160.0,109150.0,0.00204709]
[1756773461496,0.85848308,109160.0,109150.0,0.00404709]
[1756773461731,1.26526441,109160.0,109150.0,0.00404709]
[1756773462537,0.94715907,109160.0,109150.0,0.00204709]
[1756773462759,1.10691907,109160.0,109150.0,0.00204709]
[1756773462982,1.10691907,109160.0,109150.0,0.00304709]
[1756773463438,1.10691907,109160.0,109150.0,4.709e-05]
[1756773463641,1.19883506,109160.0,109150.0,4.709e-05]
[1756773464109,0.90851917,109160.0,109150.0,0.00104709]
[1756773464286,1.19883506,109160.0,109150.0,0.00104709]
[1756773464758,1.10691907,109160.0,109150.0,0.00104709]
[1756773465435,1.12655025,109160.0,109150.0,0.00104709]
[1756773465627,1.10691907,109160.0,109150.0,0.00104709]
[1756773469421,0.95039907,109160.0,109150.0,0.00104709]
[1756773469624,1.10687907,109160.0,109150.0,0.00104709]
[1756773471178,1.10683907,109160.0,109150.0,0.00104709]
[1756773472044,0.95039907,109160.0,109150.0,0.00104709]
[1756773472273,1.10683907,109160.0,109150.0,0.00104709]
[1756773478885,0.85311308,109160.0,109150.0,0.00631709]
[1756773479229,0.66947308,109160.0,109150.0,0.00631709]
[1756773482438,0.67160308,109160.0,109150.0,0.00631709]
[1756773484136,0.67160308,109160.0,109150.0,0.00310709]
[1756773484396,0.67160308,109160.0,109150.0,0.00104709]
[1756773484607,1.39707496,109160.0,109150.0,0.00104709]
[1756773484825,1.28369825,109160.0,109150.0,0.00104709]
[1756773485042,1.47330734,109160.0,109150.0,0.00104709]
[1756773485250,1.09967002,109150.0,109140.0,0.0004]
[1756773485459,1.15409695,109150.0,109140.0,0.00054143]
[1756773485693,1.15941695,109150.0,109140.0,0.00054143]
[1756773485897,1.13978192,109150.0,109140.0,0.00054143]
[1756773486080,1.17647234,109150.0,109140.0,0.00054143]
[1756773486437,1.17747234,109150.0,109140.0,0.00054143]
[1756773487152,1.17647234,109150.0,109140.0,0.00054143]
[1756773487457,1.20208737,109150.0,109140.0,0.00054143]
[1756773487593,1.21062829,109150.0,109140.0,0.00054143]
[1756773487769,1.21064631,109150.0,109140.0,0.00054143]
[1756773488201,1.16509246,109150.0,109140.0,0.00054143]
[1756773488411,0.85022712,109150.0,109140.0,0.00054143]
[1756773488616,0.85022996,109150.0,109140.0,0.00054143]
[1756773488822,1.13201003,109150.0,109140.0,0.00054143]
[1756773489462,1.14054863,109150.0,109140.0,0.00054143]
[1756773493154,1.1618637,109150.0,109140.0,0.00054143]
[1756773493357,1.18647873,109150.0,109140.0,0.00054143]
[1756773493870,1.16516366,109150.0,109140.0,0.00054143]
[1756773494377,1.14054863,109150.0,109140.0,0.00054143]
[1756773494883,1.16516366,109150.0,109140.0,0.00054143]
[1756773496074,1.16883766,109150.0,109140.0,0.00054143]
[1756773496630,1.1688616,109150.0,109140.0,0.00054143]
[1756773498038,1.16887542,109150.0,109140.0,0.00054143]
[1756773498243,1.20174437,109150.0,109140.0,0.00054143]
[1756773498623,1.20174375,109150.0,109140.0,0.00054143]
[1756773501843,1.20174615,109150.0,109140.0,0.00054143]
[1756773502470,1.04215615,109150.0,109140.0,0.00264143]
[1756773502686,1.24667033,109150.0,109140.0,0.00576143]
[1756773502894,1.21589138,109150.0,109140.0,0.00576143]
[1756773503105,1.21589138,109150.0,109140.0,0.00264143]
[1756773504769,1.21589138,109150.0,109140.0,0.00576143]
[1756773507494,1.05897138,109150.0,109140.0,0.00576143]
[1756773507749,0.51769181,109150.0,109140.0,0.1890123]
[1756773507972,0.65728141,109150.0,109140.0,0.1890123]
[1756773508640,0.65728449,109150.0,109140.0,0.1890123]
[1756773509061,0.49960449,109150.0,109140.0,0.1890123]
[1756773509261,0.47454997,109150.0,109140.0,0.1890123]
[1756773509718,0.47454997,109150.0,109140.0,0.1900123]
[1756773509933,0.29131589,109150.0,109140.0,0.1900123]
[1756773510141,0.001,109150.0,109140.0,0.1900123]
[1756773510971,0.64217646,109160.0,109150.0,0.18323408]
[1756773511179,0.66828491,109160.0,109150.0,0.18533408]
[1756773511385,0.66828491,109160.0,109150.0,0.18845408]
[1756773511795,0.66828453,109160.0,109150.0,0.18845408]
[1756773512240,0.48606724,109160.0,109150.0,0.18845408]
[1756773512417,0.45995879,109160.0,109150.0,0.18845408]
[1756773512828,0.64526608,109160.0,109150.0,0.0021]
[1756773513031,0.18323408,109150.0,109140.0,0.00366143]
[1756773513236,0.47354997,109150.0,109140.0,0.1869123]
[1756773513448,0.29031589,109150.0,109140.0,0.1890123]
[1756773513870,0.47354997,109150.0,109140.0,0.1890123]
[1756773514276,0.47354997,109150.0,109140.0,0.1910123]
[1756773515596,0.47354997,109150.0,109140.0,0.1920123]
[1756773517057,0.29031589,109150.0,109140.0,0.1920123]
[1756773517467,0.48557608,109160.0,109150.0,0.18323408]
[1756773517696,0.48557608,109160.0,109150.0,0.18837408]
[1756773518206,0.0120429,109160.0,109150.0,0.18837408]
[1756773518446,0.48557608,109160.0,109150.0,0.34477408]
[1756773518690,0.29031589,109160.0,109150.0,0.34477408]
[1756773518918,0.47353318,109160.0,109150.0,0.34477408]
[1756773519338,0.47353318,109160.0,109150.0,0.34577408]
[1756773519888,0.48480199,109160.0,109150.0,0.34577408]
[1756773520300,0.1944861,109160.0,109150.0,0.34577408]
[1756773520509,0.48480199,109160.0,109150.0,0.34577408]
[1756773523620,0.29031589,109160.0,109150.0,0.34577408]
[1756773524018,0.47353318,109160.0,109150.0,0.34577408]
[1756773526416,0.29031589,109160.0,109150.0,0.34577408]
[1756773526622,0.19478294,109160.0,109150.0,0.34577408]
[1756773526830,0.30188154,109160.0,109150.0,0.34577408]
[1756773527245,0.29031589,109160.0,109150.0,0.34577408]
[1756773527684,0.1923757,109170.0,109160.0,0.18321729]
[1756773527899,0.35192231,109180.0,109170.0,0.18320051]
[1756773527900,0.19237231,109180.0,109170.0,0.18320051]
[1756773528111,0.66092574,109180.0,109170.0,0.00206]
[1756773528344,0.47352902,109180.0,109170.0,0.34474051]
[1756773528797,0.48472431,109180.0,109170.0,0.34474051]
[1756773529005,0.48688431,109180.0,109170.0,0.34474051]
[1756773529783,0.30151118,109180.0,109170.0,0.34474051]
[1756773529991,0.33961568,109190.0,109180.0,0.18318373]
[1756773530200,0.18316695,109190.0,109180.0,0.18832373]
[1756773530464,0.48577357,109200.0,109180.0,0.18532373]
[1756773530603,0.48577357,109200.0,109180.0,0.18761352]
[1756773531175,0.4862449,109200.0,109180.0,0.18761352]
[1756773531434,0.49429589,109200.0,109190.0,0.18316695]
[1756773531614,0.49645589,109200.0,109190.0,0.34470695]
[1756773532278,0.49745589,109200.0,109190.0,0.34470695]
[1756773532485,0.48613839,109200.0,109190.0,0.34470695]
[1756773532879,0.48613839,109200.0,109190.0,0.34570695]
[1756773533388,0.48513839,109200.0,109190.0,0.34570695]
[1756773533739,0.00147133,109200.0,109190.0,0.34570695]
[1756773533980,0.00147133,109200.0,109190.0,0.43762294]
[1756773535256,0.29178722,109200.0,109190.0,0.43762294]
[1756773535474,0.3029528,109200.0,109190.0,0.43762294]
[1756773535975,0.01263691,109200.0,109190.0,0.43762294]
[1756773536182,0.3029528,109200.0,109190.0,0.43762294]
[1756773537055,0.29178722,109200.0,109190.0,0.43762294]
[1756773538058,0.00147133,109200.0,109190.0,0.43762294]
[1756773538279,0.01311773,109200.0,109190.0,0.43762294]
[1756773539641,0.30343362,109200.0,109190.0,0.43762294]
[1756773540073,0.4865838,109200.0,109190.0,0.43762294]
[1756773540295,0.30343362,109200.0,109190.0,0.43762294]
[1756773542561,0.29178722,109200.0,109190.0,0.43762294]
[1756773543058,0.30341084,109200.0,109190.0,0.43762294]
[1756773543284,0.29178722,109200.0,109190.0,0.43762294]
[1756773543499,0.00147133,109200.0,109190.0,0.43762294]
[1756773543931,0.00147133,109200.0,109190.0,0.74887765]
[1756773545056,0.00147133,109200.0,109190.0,0.45756176]
[1756773545270,0.00147133,109200.0,109190.0,0.74787765]
[1756773545710,0.00047133,109200.0,109190.0,0.46156176]
[1756773546143,0.00047133,109200.0,109190.0,0.46356176]
[1756773546553,0.00047133,109200.0,109190.0,0.45756176]
[1756773546851,0.00047133,109200.0,109190.0,0.46356176]
[1756773547061,0.00047133,109200.0,109190.0,0.46656176]
[1756773550130,0.76939329,109200.0,109190.0,0.009]
[1756773550308,0.76939329,109200.0,109190.0,0.16532]
[1756773550902,0.76939329,109200.0,109190.0,0.16232]
[1756773551932,0.76939329,109200.0,109190.0,0.15632]
[1756773552578,0.79692429,109200.0,109190.0,0.15932]
[1756773552984,0.5066084,109200.0,109190.0,0.34248695]
[1756773553193,0.21629251,109200.0,109190.0,0.34248695]
[1756773553389,0.29294722,109200.0,109190.0,0.43651294]
[1756773553594,0.4760974,109200.0,109190.0,0.43551294]
[1756773554007,0.4760974,109200.0,109190.0,0.24923022]
[1756773554159,0.4760974,109200.0,109190.0,0.43239717]
[1756773554518,0.4760974,109200.0,109190.0,0.43450717]
[1756773556087,0.4790774,109200.0,109190.0,0.24923022]
[1756773556473,0.76939329,109200.0,109190.0,0.24923022]
[1756773557080,0.4760974,109200.0,109190.0,0.43450717]
[1756773557283,0.29935596,109200.0,109190.0,0.43450717]
[1756773557484,0.48250614,109200.0,109190.0,0.43450717]
[1756773557985,0.29935596,109200.0,109190.0,0.43450717]
[1756773558189,0.29935596,109200.0,109190.0,0.43744717]
[1756773558393,0.48250614,109200.0,109190.0,0.43744717]
[1756773558578,0.48250614,109200.0,109190.0,0.43450717]
[1756773559212,0.49403936,109200.0,109190.0,0.24923022]
[1756773559572,0.51375161,109200.0,109190.0,0.43239717]
[1756773559778,0.4790774,109200.0,109190.0,0.43239717]
[1756773560453,0.51376615,109200.0,109190.0,0.24923022]
[1756773561180,0.80408204,109200.0,109190.0,0.24923022]
[1756773561591,0.8040834,109200.0,109190.0,0.24923022]
[1756773562031,0.80408354,109200.0,109190.0,0.24923022]
[1756773562247,0.79552764,109200.0,109190.0,0.24923022]
[1756773562497,0.79552764,109200.0,109190.0,0.15731423]
[1756773562713,0.80408655,109200.0,109190.0,0.15832]
[1756773562929,0.80408655,109200.0,109190.0,0.002]
[1756773563575,0.83161755,109200.0,109190.0,0.002]
[1756773563799,0.25099025,109200.0,109190.0,0.002]
[1756773564007,0.22048023,109200.0,109190.0,0.00411]
[1756773564217,0.50521721,109200.0,109190.0,0.002]
[1756773564454,0.50223721,109200.0,109190.0,0.00411]
[1756773564677,0.7955331,109200.0,109190.0,0.002]
[1756773564899,0.80409178,109200.0,109190.0,0.002]
[1756773565101,0.89600777,109200.0,109190.0,0.002]
[1756773565316,1.16864123,109200.0,109190.0,0.002]
[1756773565966,0.18316695,109190.0,109180.0,0.15632]
[1756773566166,0.18316695,109190.0,109170.0,0.22676]
[1756773566167,0.18318373,109180.0,109170.0,0.22676]
[1756773566406,0.47863962,109180.0,109170.0,0.22676]
[1756773567030,0.47863962,109180.0,109170.0,0.15632]
[1756773568708,0.47863962,109180.0,109170.0,0.15932]
[1756773568929,0.47863962,109180.0,109170.0,0.16032]
[1756773574223,0.47565962,109180.0,109170.0,0.16243]
[1756773574424,0.47863962,109180.0,109170.0,0.16032]
[1756773578387,0.18534373,109180.0,109170.0,0.34857051]
[1756773578603,0.21070195,109190.0,109180.0,0.18318373]
[1756773578813,0.47348284,109190.0,109180.0,0.18823373]
[1756773579249,0.9824749,109200.0,109190.0,0.18316695]
[1756773579250,0.22031201,109200.0,109190.0,0.18316695]
[1756773579471,1.16064112,109200.0,109190.0,0.16133]
[1756773579708,1.16269112,109200.0,109190.0,0.15838]
[1756773580545,1.14299379,109200.0,109190.0,0.15838]
[1756773580752,0.80094379,109200.0,109190.0,0.34449695]
[1756773580965,1.14094379,109200.0,109190.0,0.34449695]
[1756773581170,1.14299379,109200.0,109190.0,0.16133]
[1756773581590,0.18316695,109190.0,109180.0,0.33946373]
[1756773581810,0.8516279,109200.0,109190.0,0.18316695]
[1756773582020,0.8536779,109200.0,109190.0,0.0021]
[1756773582245,0.87648792,109200.0,109180.0,0.43432972]
[1756773582452,0.18316695,109190.0,109180.0,0.43432972]
[1756773582875,0.47348284,109190.0,109180.0,0.43642972]
[1756773583139,0.47553284,109190.0,109180.0,0.25029599]
[1756773583395,0.18318373,109180.0,109160.0,0.19532782]
[1756773583646,0.18318373,109180.0,109170.0,0.25029599]
[1756773583844,0.52523373,109180.0,109170.0,0.15838]
[1756773584115,0.52523373,109180.0,109170.0,0.34158051]
[1756773584336,0.52523373,109180.0,109170.0,0.15838]
[1756773584764,0.81554962,109180.0,109170.0,0.15838]
[1756773585089,0.81554962,109180.0,109170.0,0.15938]
[1756773585279,0.81554962,109180.0,109170.0,0.16238]
[1756773585536,1.10586551,109180.0,109170.0,0.34558051]
[1756773585733,1.10586551,109180.0,109170.0,0.34853051]
[1756773585995,0.63031589,109180.0,109170.0,0.34853051]
[1756773587102,0.81349962,109180.0,109170.0,0.34853051]
[1756773587332,0.63031589,109180.0,109170.0,0.34853051]
[1756773587762,0.29031589,109180.0,109170.0,0.34853051]
[1756773588410,0.47349962,109180.0,109170.0,0.34853051]
[1756773588830,0.29031589,109180.0,109170.0,0.34853051]
[1756773589260,0.47349962,109180.0,109170.0,0.34853051]
[1756773590516,0.47554962,109180.0,109170.0,0.16238]
[1756773591664,0.47554962,109180.0,109170.0,0.34558051]
[1756773591870,0.47554962,109180.0,109170.0,0.16238]
[1756773592475,0.47554962,109180.0,109170.0,0.34853051]
[1756773592675,0.29031589,109180.0,109170.0,0.34853051]
[1756773592811,0.47349962,109180.0,109170.0,0.34853051]
[1756773593008,0.29031589,109180.0,109170.0,0.34853051]
[1756773593216,0.47349962,109180.0,109170.0,0.34853051]
[1756773593664,0.47554962,109180.0,109170.0,0.34853051]
[1756773594413,0.47554962,109180.0,109170.0,0.16533]
[1756773594597,0.47554962,109180.0,109170.0,0.16238]
[1756773595700,0.47554962,109180.0,109170.0,0.34558051]
[1756773595928,0.29031589,109180.0,109170.0,0.34853051]
[1756773596141,0.55380027,109190.0,109170.0,0.34853051]
[1756773596358,0.55380027,109190.0,109180.0,0.18318373]
[1756773596591,0.18318373,109180.0,109170.0,0.34643051]
[1756773596812,0.18318373,109180.0,109170.0,0.34853051]
[1756773597063,0.00047133,109200.0,109190.0,0.18316695]
[1756773597261,0.02226761,109200.0,109190.0,0.34154695]
[1756773597478,0.49573368,109200.0,109190.0,0.15838]
[1756773597688,0.76378196,109200.0,109190.0,0.15628]
[1756773597907,0.76583196,109200.0,109190.0,0.15628]
[1756773598111,0.76583196,109200.0,109190.0,0.33944695]
[1756773598745,0.76893196,109200.0,109190.0,0.33944695]
[1756773599377,0.76583196,109200.0,109190.0,0.33944695]
[1756773599765,0.76583196,109200.0,109190.0,0.34144695]